[Event "Late-Titled-Tuesday-Blitz-May-28-2024"]
[Site "Chess.com"]
[Date "2024.05.28"]
[Round "3"]
[White "maximnovik"]
[Black "Aygehovit1992"]
[Result "0-1"]
[WhiteElo "2559"]
[BlackElo "2821"]
[TimeControl "180+1"]
[EndTime "14:29:23 PDT"]
[Termination "Aygehovit1992 won on time"]

1. e4 {[%clk 0:03:00.4]} 1... c5 {[%clk 0:02:54.4]} 2. Nf3 {[%clk 0:02:55.4]}
2... e6 {[%clk 0:02:53.7]} 3. c3 {[%clk 0:02:53.8]} 3... d5 {[%clk 0:02:54.1]}
4. e5 {[%clk 0:02:54]} 4... d4 {[%clk 0:02:53.7]} 5. d3 {[%clk 0:02:53.7]} 5...
Nc6 {[%clk 0:02:52.6]} 6. g3 {[%clk 0:02:54.2]} 6... dxc3 {[%clk 0:02:52.2]} 7.
bxc3 {[%clk 0:02:52.6]} 7... Nge7 {[%clk 0:02:52.5]} 8. Bg2 {[%clk 0:02:50.8]}
8... b6 {[%clk 0:02:52.7]} 9. O-O {[%clk 0:02:50.2]} 9... Ba6 {[%clk 0:02:50.3]}
10. Qa4 {[%clk 0:02:22.8]} 10... Bb7 {[%clk 0:01:53.8]} 11. Rd1 {[%clk 0:02:01]}
11... Qd7 {[%clk 0:01:46]} 12. Qc2 {[%clk 0:01:43.8]} 12... Rc8 {[%clk
0:01:41.7]} 13. Na3 {[%clk 0:01:42.6]} 13... Ng6 {[%clk 0:01:36.7]} 14. Qe2
{[%clk 0:01:42.7]} 14... Be7 {[%clk 0:01:33.7]} 15. Rb1 {[%clk 0:01:39]} 15...
O-O {[%clk 0:01:33.5]} 16. Nc4 {[%clk 0:01:39.2]} 16... Rfd8 {[%clk 0:01:27.7]}
17. h4 {[%clk 0:01:38.7]} 17... h6 {[%clk 0:01:25.9]} 18. h5 {[%clk 0:01:37.1]}
18... Nf8 {[%clk 0:01:25]} 19. Bf4 {[%clk 0:01:36.9]} 19... Nh7 {[%clk
0:01:24.8]} 20. a4 {[%clk 0:01:35]} 20... Ba6 {[%clk 0:01:13.4]} 21. Qe4 {[%clk
0:01:30.1]} 21... Qd5 {[%clk 0:01:10.8]} 22. Qe2 {[%clk 0:01:08]} 22... Qd7
{[%clk 0:01:10.8]} 23. Qe4 {[%clk 0:01:07.2]} 23... Qe8 {[%clk 0:01:10.3]} 24.
g4 {[%clk 0:01:03]} 24... Rd7 {[%clk 0:01:00.9]} 25. a5 {[%clk 0:00:50.9]} 25...
b5 {[%clk 0:00:59.5]} 26. Nd6 {[%clk 0:00:50.7]} 26... Bxd6 {[%clk 0:00:58.2]}
27. exd6 {[%clk 0:00:50.9]} 27... f6 {[%clk 0:00:53.4]} 28. d4 {[%clk
0:00:46.3]} 28... cxd4 {[%clk 0:00:53.2]} 29. cxd4 {[%clk 0:00:46.5]} 29... Nd8
{[%clk 0:00:38.8]} 30. Rbc1 {[%clk 0:00:33]} 30... Bb7 {[%clk 0:00:35.4]} 31.
Qe2 {[%clk 0:00:33.1]} 31... a6 {[%clk 0:00:29.6]} 32. Rc7 {[%clk 0:00:32.5]}
32... Nf7 {[%clk 0:00:26.8]} 33. Rdc1 {[%clk 0:00:22.8]} 33... Nxd6 {[%clk
0:00:18.9]} 34. Bxd6 {[%clk 0:00:18.5]} 34... Rxd6 {[%clk 0:00:19.8]} 35. R1c5
{[%clk 0:00:13.5]} 35... Rxc7 {[%clk 0:00:19.2]} 36. Rxc7 {[%clk 0:00:13.6]}
36... Rd7 {[%clk 0:00:19.6]} 37. Rc5 {[%clk 0:00:13.4]} 37... Nf8 {[%clk
0:00:17.5]} 38. Qe3 {[%clk 0:00:11.1]} 38... Qd8 {[%clk 0:00:16]} 39. Bf1 {[%clk
0:00:07.3]} 39... Qxa5 {[%clk 0:00:15.6]} 40. Bd3 {[%clk 0:00:06.7]} 40... Bxf3
{[%clk 0:00:12.4]} 41. Qxf3 {[%clk 0:00:06.6]} 41... Qa1+ {[%clk 0:00:12.9]} 42.
Kg2 {[%clk 0:00:06.4]} 42... Qxd4 {[%clk 0:00:13.8]} 43. Rc3 {[%clk 0:00:02.9]}
43... b4 {[%clk 0:00:11.9]} 44. Rb3 {[%clk 0:00:02.6]} 44... a5 {[%clk
0:00:10.4]} 45. Bg6 {[%clk 0:00:02.6]} 45... Nxg6 {[%clk 0:00:08.8]} 46. hxg6
{[%clk 0:00:02.9]} 46... Qd5 {[%clk 0:00:09.1]} 0-1

[Event "Late-Titled-Tuesday-Blitz-May-28-2024"]
[Site "Chess.com"]
[Date "2024.05.28"]
[Round "3"]
[White "RantomOpening"]
[Black "Jahonas"]
[Result "0-1"]
[WhiteElo "2563"]
[BlackElo "2434"]
[TimeControl "180+1"]
[EndTime "14:29:23 PDT"]
[Termination "Jahonas won on time"]

1. b3 {[%clk 0:02:50.3]} 1... Nf6 {[%clk 0:02:59]} 2. Bb2 {[%clk 0:02:47]} 2...
d5 {[%clk 0:02:58.8]} 3. Nf3 {[%clk 0:02:45.5]} 3... Bf5 {[%clk 0:02:56.1]} 4.
g3 {[%clk 0:02:39.6]} 4... e6 {[%clk 0:02:54.4]} 5. d3 {[%clk 0:02:39.5]} 5...
Be7 {[%clk 0:02:53.7]} 6. Bg2 {[%clk 0:02:39.6]} 6... O-O {[%clk 0:02:53]} 7.
O-O {[%clk 0:02:39.9]} 7... Nc6 {[%clk 0:02:49]} 8. Nbd2 {[%clk 0:02:38.1]} 8...
Qd7 {[%clk 0:02:44.2]} 9. a3 {[%clk 0:02:23.8]} 9... a5 {[%clk 0:02:42.3]} 10.
Qe1 {[%clk 0:02:22.6]} 10... Rfd8 {[%clk 0:02:39]} 11. Rd1 {[%clk 0:02:20.4]}
11... h6 {[%clk 0:02:32.6]} 12. Nh4 {[%clk 0:02:04.4]} 12... Bh7 {[%clk
0:02:31.2]} 13. Nhf3 {[%clk 0:01:46.9]} 13... Qe8 {[%clk 0:02:18.3]} 14. e4
{[%clk 0:01:44.6]} 14... dxe4 {[%clk 0:02:17.5]} 15. dxe4 {[%clk 0:01:43.3]}
15... Nxe4 {[%clk 0:02:02.5]} 16. Nxe4 {[%clk 0:01:39.3]} 16... Rxd1 {[%clk
0:02:01.6]} 17. Qxd1 {[%clk 0:01:40.2]} 17... Bxe4 {[%clk 0:02:00.8]} 18. Qe2
{[%clk 0:01:40]} 18... Bg6 {[%clk 0:01:41.3]} 19. Rd1 {[%clk 0:01:28.8]} 19...
Rd8 {[%clk 0:01:40.1]} 20. h4 {[%clk 0:01:26.4]} 20... Rxd1+ {[%clk 0:01:38.3]}
21. Qxd1 {[%clk 0:01:25.9]} 21... Qd8 {[%clk 0:01:35.4]} 22. Qxd8+ {[%clk
0:01:25.8]} 22... Bxd8 {[%clk 0:01:35.1]} 23. Ne5 {[%clk 0:00:58.7]} 23... Nxe5
{[%clk 0:01:33.1]} 24. Bxe5 {[%clk 0:00:59.6]} 24... Bxc2 {[%clk 0:01:29.9]} 25.
Bxb7 {[%clk 0:00:58.7]} 25... Bxb3 {[%clk 0:01:29.7]} 26. Bc3 {[%clk 0:00:57]}
26... c5 {[%clk 0:01:26]} 27. Kf1 {[%clk 0:00:53]} 27... Bd5 {[%clk 0:01:21.9]}
28. Ba6 {[%clk 0:00:52.6]} 28... Kf8 {[%clk 0:01:20]} 29. Ke2 {[%clk 0:00:49]}
29... g6 {[%clk 0:01:17.1]} 30. Bd3 {[%clk 0:00:47.2]} 30... h5 {[%clk
0:01:16.9]} 31. Ke3 {[%clk 0:00:44.9]} 31... Ke7 {[%clk 0:01:16.2]} 32. Bc2
{[%clk 0:00:43.2]} 32... Kd6 {[%clk 0:01:14.9]} 33. Bd3 {[%clk 0:00:41.2]} 33...
c4 {[%clk 0:01:14.1]} 34. Bc2 {[%clk 0:00:41.2]} 34... Bb6+ {[%clk 0:01:14.3]}
35. Ke2 {[%clk 0:00:38.9]} 35... e5 {[%clk 0:01:13.6]} 36. f3 {[%clk 0:00:36.3]}
36... f5 {[%clk 0:01:13.3]} 37. f4 {[%clk 0:00:31.9]} 37... exf4 {[%clk
0:01:11.9]} 38. gxf4 {[%clk 0:00:32.8]} 38... Bc5 {[%clk 0:01:12.3]} 39. Be5+
{[%clk 0:00:30.8]} 39... Ke6 {[%clk 0:01:11.2]} 40. Ba4 {[%clk 0:00:28.7]} 40...
Bxa3 {[%clk 0:01:09.6]} 41. Be8 {[%clk 0:00:28.9]} 41... Bd6 {[%clk 0:01:07.9]}
42. Bxd6 {[%clk 0:00:27.2]} 42... Kxd6 {[%clk 0:01:07.7]} 43. Bxg6 {[%clk
0:00:27.7]} 43... a4 {[%clk 0:00:53.8]} 44. Kd2 {[%clk 0:00:26.1]} 44... a3
{[%clk 0:00:49.6]} 45. Kc3 {[%clk 0:00:25]} 45... a2 {[%clk 0:00:34.2]} 46. Kb2
{[%clk 0:00:17.3]} 46... c3+ {[%clk 0:00:26.6]} 47. Kxc3 {[%clk 0:00:09.4]}
47... a1=Q+ {[%clk 0:00:26.2]} 48. Kd2 {[%clk 0:00:08.9]} 48... Qg1 {[%clk
0:00:24.4]} 49. Bxf5 {[%clk 0:00:07.7]} 49... Qf2+ {[%clk 0:00:24.5]} 50. Kc3
{[%clk 0:00:06.4]} 50... Qxf4 {[%clk 0:00:24.7]} 51. Bh7 {[%clk 0:00:05.7]}
51... Qxh4 {[%clk 0:00:24.8]} 52. Kd2 {[%clk 0:00:05.9]} 52... Qg3 {[%clk
0:00:24.4]} 53. Ke2 {[%clk 0:00:05.5]} 53... h4 {[%clk 0:00:24.8]} 54. Kd2
{[%clk 0:00:04.7]} 54... h3 {[%clk 0:00:25.2]} 0-1

[Event "Late-Titled-Tuesday-Blitz-May-28-2024"]
[Site "Chess.com"]
[Date "2024.05.28"]
[Round "3"]
[White "NikitaShnadrygin"]
[Black "Cambek64"]
[Result "0-1"]
[WhiteElo "2726"]
[BlackElo "2516"]
[TimeControl "180+1"]
[EndTime "14:29:24 PDT"]
[Termination "Cambek64 won on time"]

1. Nf3 {[%clk 0:03:00.9]} 1... b5 {[%clk 0:02:56.2]} 2. g3 {[%clk 0:03:00.8]}
2... Bb7 {[%clk 0:02:55.5]} 3. Bg2 {[%clk 0:03:01.6]} 3... Nf6 {[%clk
0:02:55.2]} 4. O-O {[%clk 0:03:02]} 4... e6 {[%clk 0:02:55.2]} 5. b3 {[%clk
0:03:02.4]} 5... c5 {[%clk 0:02:52.1]} 6. Bb2 {[%clk 0:03:02.8]} 6... Be7 {[%clk
0:02:51.5]} 7. e3 {[%clk 0:03:03.3]} 7... O-O {[%clk 0:02:51.4]} 8. d4 {[%clk
0:03:03.9]} 8... cxd4 {[%clk 0:02:48.6]} 9. exd4 {[%clk 0:03:04.1]} 9... d6
{[%clk 0:02:40.9]} 10. Nbd2 {[%clk 0:03:03.5]} 10... Nbd7 {[%clk 0:02:40.8]} 11.
c4 {[%clk 0:03:03.3]} 11... bxc4 {[%clk 0:02:40.3]} 12. bxc4 {[%clk 0:03:04.1]}
12... Qc7 {[%clk 0:02:40.3]} 13. Qe2 {[%clk 0:03:03.9]} 13... Rfe8 {[%clk
0:02:39.4]} 14. Rac1 {[%clk 0:03:03.7]} 14... Rab8 {[%clk 0:02:37.9]} 15. Bc3
{[%clk 0:02:58.3]} 15... h6 {[%clk 0:02:25.8]} 16. Nb3 {[%clk 0:02:58.4]} 16...
Bf8 {[%clk 0:02:24.8]} 17. Rfd1 {[%clk 0:02:58]} 17... Ne4 {[%clk 0:02:19.1]}
18. Be1 {[%clk 0:02:57.7]} 18... Ndf6 {[%clk 0:02:19.2]} 19. Ba5 {[%clk
0:02:45.4]} 19... Qd7 {[%clk 0:02:14.8]} 20. c5 {[%clk 0:02:39.8]} 20... Qa4
{[%clk 0:02:09.5]} 21. Bc7 {[%clk 0:02:27.6]} 21... Rbc8 {[%clk 0:02:07.6]} 22.
cxd6 {[%clk 0:02:25]} 22... Bxd6 {[%clk 0:01:32.3]} 23. Bxd6 {[%clk 0:02:19.1]}
23... Nxd6 {[%clk 0:01:32.3]} 24. Nc5 {[%clk 0:02:19.1]} 24... Bxf3 {[%clk
0:01:32.8]} 25. Bxf3 {[%clk 0:02:19.3]} 25... Qa5 {[%clk 0:01:20.4]} 26. Rc2
{[%clk 0:02:03.7]} 26... Nb5 {[%clk 0:01:09.3]} 27. Qe5 {[%clk 0:01:25.6]} 27...
Qc7 {[%clk 0:01:02.1]} 28. Qe2 {[%clk 0:01:17.1]} 28... Qa5 {[%clk 0:01:01]} 29.
Qe5 {[%clk 0:01:16.6]} 29... Qc7 {[%clk 0:01:00.4]} 30. Be2 {[%clk 0:01:10.9]}
30... Nd6 {[%clk 0:00:34.9]} 31. Rdc1 {[%clk 0:01:05.2]} 31... Qe7 {[%clk
0:00:33.3]} 32. Bf3 {[%clk 0:00:58.3]} 32... Red8 {[%clk 0:00:27.5]} 33. Na6
{[%clk 0:00:42.4]} 33... Rxc2 {[%clk 0:00:18.9]} 34. Rxc2 {[%clk 0:00:43.3]}
34... Nf5 {[%clk 0:00:18.4]} 35. Rd2 {[%clk 0:00:18.7]} 35... Qd6 {[%clk
0:00:15.1]} 36. Qa5 {[%clk 0:00:06.4]} 36... Nxd4 {[%clk 0:00:14.4]} 37. Kg2
{[%clk 0:00:06]} 37... e5 {[%clk 0:00:14.3]} 38. Nb4 {[%clk 0:00:05.9]} 38...
Qe7 {[%clk 0:00:10]} 39. Bd1 {[%clk 0:00:04.6]} 39... Qd6 {[%clk 0:00:08.3]} 40.
Nd3 {[%clk 0:00:03.7]} 40... Qd5+ {[%clk 0:00:07.3]} 41. Kg1 {[%clk 0:00:03.2]}
41... Qxa5 {[%clk 0:00:06.6]} 0-1

[Event "Late-Titled-Tuesday-Blitz-May-28-2024"]
[Site "Chess.com"]
[Date "2024.05.28"]
[Round "3"]
[White "HajiyevKanan"]
[Black "GoValya"]
[Result "1-0"]
[WhiteElo "2481"]
[BlackElo "2219"]
[TimeControl "180+1"]
[EndTime "14:29:25 PDT"]
[Termination "HajiyevKanan won by resignation"]

1. d4 {[%clk 0:03:00.9]} 1... d5 {[%clk 0:02:59.8]} 2. Nf3 {[%clk 0:03:01.8]}
2... c6 {[%clk 0:03:00.1]} 3. c4 {[%clk 0:02:59.2]} 3... g6 {[%clk 0:03:00.3]}
4. cxd5 {[%clk 0:03:00.1]} 4... cxd5 {[%clk 0:03:00.1]} 5. Nc3 {[%clk
0:03:00.5]} 5... Bg7 {[%clk 0:03:00.5]} 6. Qb3 {[%clk 0:03:00]} 6... Nc6 {[%clk
0:03:00.6]} 7. Qxd5 {[%clk 0:02:58.7]} 7... Nxd4 {[%clk 0:02:51.8]} 8. Nxd4
{[%clk 0:02:50]} 8... Bxd4 {[%clk 0:02:51.2]} 9. Qxd8+ {[%clk 0:02:49.8]} 9...
Kxd8 {[%clk 0:02:51.3]} 10. Bd2 {[%clk 0:02:44.7]} 10... Be6 {[%clk 0:02:45.8]}
11. O-O-O {[%clk 0:02:44.8]} 11... Kc8 {[%clk 0:02:28.6]} 12. e3 {[%clk
0:02:35.6]} 12... Bg7 {[%clk 0:02:17.4]} 13. Be2 {[%clk 0:02:24.7]} 13... a6
{[%clk 0:02:13.1]} 14. Bf3 {[%clk 0:02:24.8]} 14... Nf6 {[%clk 0:02:10.2]} 15.
Kb1 {[%clk 0:02:20.5]} 15... Kc7 {[%clk 0:02:09.5]} 16. Rc1 {[%clk 0:02:20.1]}
16... Kb8 {[%clk 0:01:58.9]} 17. e4 {[%clk 0:02:18.6]} 17... Nd7 {[%clk
0:01:55.6]} 18. Rhd1 {[%clk 0:02:15.5]} 18... Be5 {[%clk 0:01:52.4]} 19. Nd5
{[%clk 0:02:10.9]} 19... Bxd5 {[%clk 0:01:44.1]} 20. exd5 {[%clk 0:02:11.1]}
20... Bd6 {[%clk 0:01:44.2]} 21. Bc3 {[%clk 0:02:06.2]} 21... Rc8 {[%clk
0:01:38.7]} 22. h4 {[%clk 0:02:06.8]} 22... b6 {[%clk 0:01:23.5]} 23. Bg4 {[%clk
0:02:06.6]} 23... f5 {[%clk 0:01:18.1]} 24. Be2 {[%clk 0:02:05.6]} 24... Kb7
{[%clk 0:01:13.2]} 25. h5 {[%clk 0:02:06]} 25... Nc5 {[%clk 0:00:58.8]} 26. Rh1
{[%clk 0:01:54.2]} 26... Ne4 {[%clk 0:00:54.8]} 27. Bd4 {[%clk 0:01:54]} 27...
Bf4 {[%clk 0:00:40]} 28. Rxc8 {[%clk 0:01:42.6]} 28... Rxc8 {[%clk 0:00:40.9]}
29. hxg6 {[%clk 0:01:38.8]} 29... hxg6 {[%clk 0:00:41.8]} 30. g3 {[%clk
0:01:34.4]} 30... Bd6 {[%clk 0:00:33.8]} 31. Bd3 {[%clk 0:01:26]} 31... Nd2+
{[%clk 0:00:30.6]} 32. Ka1 {[%clk 0:01:25.9]} 32... Nf3 {[%clk 0:00:30.9]} 33.
Be3 {[%clk 0:01:23.3]} 33... Bc5 {[%clk 0:00:28.6]} 34. Be2 {[%clk 0:01:16.5]}
34... Ne5 {[%clk 0:00:23]} 35. Bf4 {[%clk 0:01:12.5]} 35... Bd6 {[%clk
0:00:20.4]} 36. Kb1 {[%clk 0:01:09.8]} 36... b5 {[%clk 0:00:18]} 37. a3 {[%clk
0:01:08.7]} 37... Nc4 {[%clk 0:00:17.7]} 38. Bg5 {[%clk 0:01:08.1]} 38... Ne5
{[%clk 0:00:15.8]} 39. Rh7 {[%clk 0:01:06.8]} 39... Rc7 {[%clk 0:00:15.4]} 40.
f4 {[%clk 0:01:05.5]} 40... Nc4 {[%clk 0:00:15.5]} 41. Bxc4 {[%clk 0:01:03.2]}
41... bxc4 {[%clk 0:00:16.4]} 42. Rg7 {[%clk 0:01:03.5]} 42... Kb6 {[%clk
0:00:15.9]} 43. Kc2 {[%clk 0:00:59.5]} 43... Kc5 {[%clk 0:00:15.9]} 44. Rxg6
{[%clk 0:00:58.4]} 44... Kxd5 {[%clk 0:00:16.3]} 45. Rg8 {[%clk 0:00:57.7]}
45... c3 {[%clk 0:00:16.2]} 46. bxc3 {[%clk 0:00:56.4]} 46... Bxa3 {[%clk
0:00:17.1]} 47. Rd8+ {[%clk 0:00:53.1]} 47... Ke6 {[%clk 0:00:16.8]} 48. Ra8
{[%clk 0:00:51.8]} 48... Bd6 {[%clk 0:00:15.8]} 49. Rxa6 {[%clk 0:00:51.4]}
49... Kd7 {[%clk 0:00:16.2]} 50. Kd3 {[%clk 0:00:49.6]} 50... Rb7 {[%clk
0:00:14.6]} 51. Ra5 {[%clk 0:00:48.4]} 51... Ke6 {[%clk 0:00:14.3]} 52. Ra6
{[%clk 0:00:43.6]} 52... Rb1 {[%clk 0:00:14.1]} 53. Ke3 {[%clk 0:00:39.8]} 53...
Rb3 {[%clk 0:00:13.9]} 54. Rc6 {[%clk 0:00:37.5]} 54... Kd7 {[%clk 0:00:13.1]}
55. Rc4 {[%clk 0:00:37.7]} 55... Ke6 {[%clk 0:00:12.5]} 56. Bh4 {[%clk 0:00:34]}
56... Kd5 {[%clk 0:00:12.4]} 57. Rc8 {[%clk 0:00:33.8]} 57... Bb4 {[%clk
0:00:12.2]} 58. Kd2 {[%clk 0:00:27.4]} 58... Bc5 {[%clk 0:00:11.7]} 59. Kc2
{[%clk 0:00:25]} 59... Kc4 {[%clk 0:00:11.4]} 60. Rxc5+ {[%clk 0:00:22.2]} 1-0

[Event "Late-Titled-Tuesday-Blitz-May-28-2024"]
[Site "Chess.com"]
[Date "2024.05.28"]
[Round "3"]
[White "topce"]
[Black "luca_va99"]
[Result "0-1"]
[WhiteElo "2382"]
[BlackElo "2184"]
[TimeControl "180+1"]
[EndTime "14:29:26 PDT"]
[Termination "luca_va99 won by resignation"]

1. c4 {[%clk 0:03:00.9]} 1... e5 {[%clk 0:02:59.6]} 2. g3 {[%clk 0:02:58.9]}
2... Nf6 {[%clk 0:02:59.6]} 3. Nc3 {[%clk 0:02:57.7]} 3... d5 {[%clk 0:02:59.4]}
4. cxd5 {[%clk 0:02:57.1]} 4... Nxd5 {[%clk 0:03:00.3]} 5. Bg2 {[%clk
0:02:56.1]} 5... Nb6 {[%clk 0:03:00.4]} 6. Nf3 {[%clk 0:02:55.2]} 6... Nc6
{[%clk 0:03:01]} 7. O-O {[%clk 0:02:54.7]} 7... Be7 {[%clk 0:03:01.7]} 8. e3
{[%clk 0:02:54.1]} 8... O-O {[%clk 0:03:02.2]} 9. d4 {[%clk 0:02:53.9]} 9...
exd4 {[%clk 0:02:59.5]} 10. Nxd4 {[%clk 0:02:52.3]} 10... Nxd4 {[%clk
0:02:58.3]} 11. exd4 {[%clk 0:02:53.2]} 11... c6 {[%clk 0:02:58.2]} 12. a4
{[%clk 0:02:49.5]} 12... Bf6 {[%clk 0:02:58.1]} 13. a5 {[%clk 0:02:47.2]} 13...
Nc4 {[%clk 0:02:55.9]} 14. d5 {[%clk 0:02:43.1]} 14... Bxc3 {[%clk 0:02:34.4]}
15. bxc3 {[%clk 0:02:40.5]} 15... cxd5 {[%clk 0:02:33.7]} 16. Qxd5 {[%clk
0:02:34.4]} 16... Be6 {[%clk 0:02:21.7]} 17. Qxd8 {[%clk 0:02:21.2]} 17... Rfxd8
{[%clk 0:02:22.6]} 18. a6 {[%clk 0:02:19.8]} 18... bxa6 {[%clk 0:02:05.4]} 19.
Bxa8 {[%clk 0:02:16.5]} 19... Rxa8 {[%clk 0:02:06.3]} 20. Rxa6 {[%clk
0:02:15.8]} 20... Nb6 {[%clk 0:02:07]} 21. Be3 {[%clk 0:02:14.6]} 21... Bc4
{[%clk 0:02:03.5]} 22. Rfa1 {[%clk 0:02:01.5]} 22... Bxa6 {[%clk 0:02:03.6]} 23.
Rxa6 {[%clk 0:02:01.1]} 23... Nd5 {[%clk 0:02:00.5]} 24. Bd4 {[%clk 0:01:56.6]}
24... h6 {[%clk 0:01:26.1]} 25. c4 {[%clk 0:01:52.7]} 25... Nb4 {[%clk 0:01:22]}
26. Rxa7 {[%clk 0:01:51.9]} 26... Rc8 {[%clk 0:01:17.5]} 27. c5 {[%clk
0:01:42.1]} 27... Nc6 {[%clk 0:01:15.5]} 28. Ra4 {[%clk 0:01:36.8]} 28... Nxd4
{[%clk 0:01:15.6]} 29. Rxd4 {[%clk 0:01:37.7]} 29... Rxc5 {[%clk 0:01:15.8]} 30.
h4 {[%clk 0:01:38]} 30... Kh7 {[%clk 0:01:13]} 31. Kg2 {[%clk 0:01:37.6]} 31...
Kg6 {[%clk 0:01:13.3]} 32. Rd6+ {[%clk 0:01:37]} 32... f6 {[%clk 0:01:13.5]} 33.
Rd7 {[%clk 0:01:37]} 33... Re5 {[%clk 0:01:13.5]} 34. f4 {[%clk 0:01:33.2]}
34... Ra5 {[%clk 0:01:12.9]} 35. Kh3 {[%clk 0:01:30.9]} 35... h5 {[%clk
0:01:13]} 36. Rd8 {[%clk 0:01:29]} 36... Rb5 {[%clk 0:01:13.2]} 37. Rh8 {[%clk
0:01:28]} 37... Ra5 {[%clk 0:01:10.5]} 38. Rc8 {[%clk 0:01:25]} 38... Ra2 {[%clk
0:01:08.1]} 39. Rc5 {[%clk 0:01:22.7]} 39... Rb2 {[%clk 0:01:08]} 40. f5+ {[%clk
0:01:22.6]} 40... Kh6 {[%clk 0:01:06.7]} 41. Rc8 {[%clk 0:01:21.3]} 41... Kh7
{[%clk 0:01:07.2]} 42. Rc5 {[%clk 0:01:19.5]} 42... Rf2 {[%clk 0:01:07.5]} 43.
Ra5 {[%clk 0:01:17.5]} 43... Kh6 {[%clk 0:01:02]} 44. Rb5 {[%clk 0:01:09.7]}
44... Kh7 {[%clk 0:01:01.1]} 45. Rc5 {[%clk 0:01:06.9]} 45... Kg8 {[%clk
0:01:00.8]} 46. Rd5 {[%clk 0:01:04.6]} 46... Re2 {[%clk 0:01:00.1]} 47. Ra5
{[%clk 0:00:58.9]} 47... Re5 {[%clk 0:00:42.6]} 48. Rxe5 {[%clk 0:00:35.5]}
48... fxe5 {[%clk 0:00:43.5]} 49. g4 {[%clk 0:00:35.9]} 49... hxg4+ {[%clk
0:00:41.5]} 50. Kxg4 {[%clk 0:00:36.8]} 50... Kf7 {[%clk 0:00:41.8]} 51. Kg5
{[%clk 0:00:34.7]} 51... Kf8 {[%clk 0:00:33.6]} 52. h5 {[%clk 0:00:30.8]} 52...
Kf7 {[%clk 0:00:33.7]} 53. Kh4 {[%clk 0:00:23.9]} 53... Kf6 {[%clk 0:00:32.4]}
54. Kg4 {[%clk 0:00:24]} 54... e4 {[%clk 0:00:32.8]} 55. Kf4 {[%clk 0:00:22.9]}
55... e3 {[%clk 0:00:33.2]} 56. h6 {[%clk 0:00:22.3]} 56... e2 {[%clk
0:00:19.8]} 57. h7 {[%clk 0:00:19.8]} 57... g5+ {[%clk 0:00:20.2]} 58. fxg6
{[%clk 0:00:19.6]} 58... Kg7 {[%clk 0:00:20.5]} 59. Kg5 {[%clk 0:00:19.2]} 59...
e1=Q {[%clk 0:00:20.3]} 60. h8=Q+ {[%clk 0:00:20.1]} 60... Kxh8 {[%clk
0:00:20.1]} 61. Kf6 {[%clk 0:00:20.9]} 61... Qc3+ {[%clk 0:00:18.3]} 62. Kf7
{[%clk 0:00:20.6]} 62... Qc7+ {[%clk 0:00:18.9]} 63. Kf8 {[%clk 0:00:20.5]}
63... Qg7+ {[%clk 0:00:18.8]} 0-1

[Event "Late-Titled-Tuesday-Blitz-May-28-2024"]
[Site "Chess.com"]
[Date "2024.05.28"]
[Round "3"]
[White "GarayevKanan"]
[Black "Oleksandr_Bortnyk"]
[Result "0-1"]
[WhiteElo "2706"]
[BlackElo "3021"]
[TimeControl "180+1"]
[EndTime "14:29:27 PDT"]
[Termination "Oleksandr_Bortnyk won by checkmate"]

1. d4 {[%clk 0:02:56.8]} 1... g6 {[%clk 0:02:58]} 2. e4 {[%clk 0:02:56.2]} 2...
Bg7 {[%clk 0:02:58.3]} 3. Nc3 {[%clk 0:02:55.5]} 3... c6 {[%clk 0:02:58.7]} 4.
Nf3 {[%clk 0:02:51]} 4... d6 {[%clk 0:02:58.8]} 5. a4 {[%clk 0:02:49.7]} 5...
Nd7 {[%clk 0:02:58.8]} 6. g3 {[%clk 0:02:50]} 6... e5 {[%clk 0:02:56]} 7. Bg2
{[%clk 0:02:47.8]} 7... Ngf6 {[%clk 0:02:54.5]} 8. O-O {[%clk 0:02:46.8]} 8...
O-O {[%clk 0:02:54.6]} 9. h3 {[%clk 0:02:45.7]} 9... Re8 {[%clk 0:02:53.3]} 10.
Re1 {[%clk 0:02:43.9]} 10... Qc7 {[%clk 0:02:51.6]} 11. Bg5 {[%clk 0:02:41.9]}
11... a5 {[%clk 0:02:51.3]} 12. Qd2 {[%clk 0:02:37.4]} 12... exd4 {[%clk
0:02:51.8]} 13. Nxd4 {[%clk 0:02:38.3]} 13... Ne5 {[%clk 0:02:52.3]} 14. b3
{[%clk 0:02:36.9]} 14... Qb6 {[%clk 0:02:48]} 15. Be3 {[%clk 0:02:32.7]} 15...
Qb4 {[%clk 0:02:42.2]} 16. Rad1 {[%clk 0:02:23.4]} 16... Bxh3 {[%clk 0:02:04.9]}
17. Bxh3 {[%clk 0:02:15.7]} 17... c5 {[%clk 0:02:05.2]} 18. Bg2 {[%clk
0:02:08.2]} 18... cxd4 {[%clk 0:02:04.8]} 19. Qxd4 {[%clk 0:02:08.7]} 19... Rac8
{[%clk 0:01:58.4]} 20. Qxb4 {[%clk 0:01:56.3]} 20... axb4 {[%clk 0:01:59.3]} 21.
Nb5 {[%clk 0:01:57.2]} 21... Rxc2 {[%clk 0:01:59.2]} 22. Nxd6 {[%clk 0:01:55.5]}
22... Re7 {[%clk 0:01:56.7]} 23. Bd4 {[%clk 0:01:51.3]} 23... Nc6 {[%clk
0:01:50.6]} 24. Ba1 {[%clk 0:01:45.8]} 24... Ng4 {[%clk 0:01:49.1]} 25. Bxg7
{[%clk 0:01:39.8]} 25... Kxg7 {[%clk 0:01:50]} 26. f4 {[%clk 0:01:36.5]} 26...
Na5 {[%clk 0:01:41.1]} 27. e5 {[%clk 0:01:22.7]} 27... Nxb3 {[%clk 0:01:40.5]}
28. Bxb7 {[%clk 0:01:22.6]} 28... Nf2 {[%clk 0:00:56.4]} 29. Be4 {[%clk
0:00:55.3]} 29... Nh3+ {[%clk 0:00:47.4]} 30. Kh1 {[%clk 0:00:55.5]} 30... Nf2+
{[%clk 0:00:47.7]} 31. Kg1 {[%clk 0:00:55.9]} 31... Nxe4 {[%clk 0:00:46.4]} 32.
Rxe4 {[%clk 0:00:53.8]} 32... Nd2 {[%clk 0:00:44.7]} 33. Rxb4 {[%clk 0:00:44.8]}
33... Nf3+ {[%clk 0:00:45]} 34. Kf1 {[%clk 0:00:44.5]} 34... Nh2+ {[%clk
0:00:45.5]} 35. Kg1 {[%clk 0:00:44.7]} 35... Nf3+ {[%clk 0:00:46.4]} 36. Kf1
{[%clk 0:00:45.1]} 36... Kh6 {[%clk 0:00:39.6]} 37. Rd3 {[%clk 0:00:22.2]} 37...
Nh2+ {[%clk 0:00:39.9]} 38. Ke1 {[%clk 0:00:21.3]} 38... Rec7 {[%clk 0:00:34.2]}
39. f5 {[%clk 0:00:15.7]} 39... Rg2 {[%clk 0:00:22.7]} 40. Rh4+ {[%clk
0:00:10.6]} 40... Kg5 {[%clk 0:00:23.1]} 41. Rc4 {[%clk 0:00:06.6]} 41... Re7
{[%clk 0:00:11.5]} 42. e6 {[%clk 0:00:04.7]} 42... gxf5 {[%clk 0:00:10.8]} 43.
Nxf7+ {[%clk 0:00:04.1]} 43... Kf6 {[%clk 0:00:11.5]} 44. Rc6 {[%clk 0:00:03.8]}
44... Rb7 {[%clk 0:00:09.7]} 45. Kd1 {[%clk 0:00:01.7]} 45... Rb1+ {[%clk
0:00:08.9]} 46. Rc1 {[%clk 0:00:02.4]} 46... Rg1+ {[%clk 0:00:09.5]} 47. Ke2
{[%clk 0:00:03]} 47... Rgxc1 {[%clk 0:00:09.4]} 48. Nd6 {[%clk 0:00:03.1]} 48...
Kxe6 {[%clk 0:00:06.1]} 49. Nb5 {[%clk 0:00:02.8]} 49... Rc2+ {[%clk 0:00:05.6]}
50. Ke3 {[%clk 0:00:03.1]} 50... Re1+ {[%clk 0:00:05.5]} 51. Kd4 {[%clk
0:00:02.7]} 51... Re4# {[%clk 0:00:06]} 0-1